bitfinex/quotes_SOLUSD_20251120
["timestamp","ask_amount","ask_price","bid_price","bid_amount"]
[1763612704199,1.85789999,143.0,142.98,10.4211923]
[1763612704385,1.66,143.0,142.99,3.28504556]
[1763612704589,1.66,143.0,142.99,3.42720713]
[1763612704903,1.85789999,143.02,143.0,0.14216157]
[1763612705140,1.66,143.03,143.02,0.14216157]
[1763612705314,1.85789999,143.04,143.02,9.75923621]
[1763612705611,1.85789999,143.05,143.03,3.42720713]
[1763612705791,1.85789999,143.05,143.04,2.76720713]
[1763612705992,1.85789999,143.05,143.04,0.80216157]
[1763612706193,1.85789999,143.05,143.04,3.42720713]
[1763612706887,1.85789999,143.07,143.05,0.14216157]
[1763612707080,1.85789999,143.07,143.06,3.42720713]
[1763612707385,1.66,143.09,143.07,0.14216157]
[1763612707594,1.66,143.09,143.08,2.62504556]
[1763612707795,1.66,143.09,143.08,3.28504556]
[1763612708109,3.51789999,143.09,143.08,3.42720713]
[1763612708310,1.85789999,143.12,143.08,3.42720713]
[1763612708483,1.85789999,143.11,143.1,2.62504556]
[1763612708805,1.66,143.12,143.11,0.80216157]
[1763612709009,2.72504556,143.18,143.12,0.14216157]
[1763612709010,1.85789999,143.14,143.12,0.14216157]
[1763612709209,3.51789999,143.15,143.14,7.12832895]
[1763612709507,1.66,143.15,143.14,7.12832895]
[1763612709804,3.51789999,143.15,143.14,7.78832895]
[1763612710119,3.51789999,143.15,143.14,0.80216157]
[1763612711092,3.51789999,143.15,143.14,0.14216157]
[1763612715713,3.51789999,143.15,143.11,7.83917721]
[1763612715890,1.85789999,143.14,143.11,7.83917721]
[1763612716093,1.85789999,143.14,143.13,0.14216157]
[1763612716295,2.36121309,143.15,143.13,0.14216157]
[1763612716507,1.85789999,143.14,143.13,0.14216157]
[1763612716810,1.85789999,143.14,143.13,0.80216157]
[1763612717010,1.66,143.15,143.13,7.83917721]
[1763612717217,1.66,143.15,143.14,7.69701564]
[1763612717416,3.51789999,143.17,143.16,6.98519139]
[1763612717596,3.51789999,143.17,143.16,7.17917721]
[1763612718115,3.51789999,143.17,143.16,7.83917721]
[1763612718499,3.51789999,143.17,143.16,0.80216157]
[1763612719305,3.51789999,143.17,143.16,7.83917721]
[1763612719826,1.66,143.17,143.16,14.8243686]
[1763612720193,3.51789999,143.17,143.16,14.8243686]
[1763612720911,3.51789999,143.17,143.16,18.67283824]
[1763612722608,3.51789999,143.17,143.16,0.80216157]
[1763612722803,3.51789999,143.17,143.16,11.68764685]
[1763612724119,1.85789999,143.19,143.17,0.14216157]
[1763612724425,1.85789999,143.19,143.18,29.14860685]
[1763612724625,1.85789999,143.19,143.18,29.83860685]
[1763612725505,1.85789999,143.19,143.18,36.82282252]
[1763612725700,1.85789999,143.19,143.18,29.83860685]
[1763612726314,1.85789999,143.2,143.19,0.14216157]
[1763612728432,1.85789999,143.2,143.19,0.86216157]
[1763612728804,1.85789999,143.2,143.19,11.74764685]
[1763612729614,1.85789999,143.2,143.19,18.73137476]
[1763612729807,0.1,143.21,143.19,68.73137476]
[1763612730006,0.1,143.21,143.2,39.65743454]
[1763612730226,1.85789999,143.25,143.23,18.12096]
[1763612730413,3.61789999,143.26,143.24,0.14216157]
[1763612730615,3.61789999,143.26,143.24,11.74764685]
[1763612730815,1.76,143.26,143.25,4.24025134]
[1763612731216,3.61789999,143.26,143.25,0.14216157]
[1763612733102,1.76,143.26,143.25,0.14216157]
[1763612733308,3.61789999,143.26,143.25,0.14216157]
[1763612733709,3.61789999,143.26,143.25,0.86216157]
[1763612734031,3.61789999,143.26,143.25,0.14216157]
[1763612735014,3.61789999,143.26,143.25,4.96025134]
[1763612736415,1.76,143.26,143.25,11.94105413]
[1763612736930,1.76,143.26,143.25,25.96392436]
[1763612737125,0.1,143.26,143.25,30.06201413]
[1763612739025,0.1,143.26,143.25,18.98312157]
[1763612739230,0.1,143.26,143.25,71.72988182]
[1763612740015,0.1,143.26,143.25,67.63179205]
[1763612740244,0.1,143.26,143.25,71.72988182]
[1763612746725,0.1,143.26,143.25,57.84296436]
[1763612746923,1.85789999,143.25,143.22,0.72]
[1763612747145,1.85789999,143.25,143.23,4.09808977]
[1763612747539,1.85789999,143.25,143.24,0.14216157]
[1763612747742,1.85789999,143.25,143.24,18.12096]
[1763612747940,1.85789999,143.25,143.24,29.20033991]
[1763612748155,1.85789999,143.25,143.24,11.94154148]
[1763612748357,1.85789999,143.25,143.24,4.09808977]
[1763612748529,1.85789999,143.25,143.24,4.24025134]
[1763612748845,1.85789999,143.25,143.24,0.14216157]
[1763612749737,1.85789999,143.25,143.24,11.22154148]
[1763612750257,1.85789999,143.25,143.24,11.89154148]
[1763612751756,1.85789999,143.25,143.24,0.14216157]
[1763612753554,3.51789999,143.25,143.24,0.14216157]
[1763612754753,3.51789999,143.25,143.24,5.32789203]
[1763612755357,3.51789999,143.25,143.24,5.32918956]
[1763612758151,1.95789999,143.26,143.24,35.19952947]
[1763612758463,0.1,143.26,143.25,9.95511776]
[1763612758633,1.95789999,143.26,143.25,9.95511776]
[1763612759152,1.95789999,143.26,143.25,16.93592055]
[1763612759459,0.1,143.26,143.25,67.07808212]
[1763612759842,0.1,143.26,143.25,17.07808212]
[1763612760760,0.1,143.26,143.25,67.07808212]
[1763612761463,0.1,143.26,143.25,76.86690981]
[1763612762572,0.1,143.26,143.25,126.86690981]
[1763612763346,0.1,143.26,143.25,126.87665585]
[1763612767456,0.1,143.26,143.25,76.87665585]
[1763612768340,1.85789999,143.28,143.27,50.14216157]
[1763612768560,1.85789999,143.28,143.27,55.3389356]
[1763612768975,1.85789999,143.28,143.27,50.14216157]
[1763612769470,1.85789999,143.27,143.26,22.21904977]
[1763612769649,1.85789999,143.27,143.26,18.12096]
[1763612770265,1.85789999,143.27,143.26,25.10127551]
[1763612770671,1.85789999,143.27,143.26,25.24343708]
[1763612771057,1.85789999,143.27,143.26,18.12096]
[1763612771568,1.85789999,143.27,143.26,18.26312157]
[1763612772743,1.85789999,143.27,143.26,25.24343708]
[1763612774179,1.85789999,143.22,143.21,50.0]
[1763612774470,1.85789999,143.24,143.21,61.75072251]
[1763612774676,1.85789999,143.23,143.22,4.09808977]
[1763612774845,1.85789999,143.24,143.23,0.14216157]
[1763612775249,2.05789999,143.24,143.23,0.14216157]
[1763612775451,6.15598976,143.24,143.18,54.09808977]
[1763612775684,6.98088512,143.25,143.15,50.0]
[1763612775685,1.85789999,143.16,143.15,50.0]
[1763612775856,1.85789999,143.16,143.15,50.14216157]
[1763612776258,1.85789999,143.16,143.15,50.0]
[1763612777380,1.85789999,143.16,143.13,56.98654596]
[1763612777561,1.85789999,143.15,143.13,61.75463573]
[1763612777962,1.85789999,143.15,143.14,4.09808977]
[1763612778371,1.85789999,143.16,143.14,4.24025134]
[1763612778558,1.85789999,143.15,143.14,7.12832895]
[1763612778779,1.85789999,143.15,143.14,11.22641872]
[1763612778975,1.85789999,143.16,143.14,11.22641872]
[1763612779291,1.85789999,143.15,143.14,11.22641872]
[1763612779663,1.85789999,143.15,143.14,7.12832895]
[1763612780062,1.66,143.17,143.15,50.14216157]
[1763612780261,1.85789999,143.16,143.15,54.91025134]
[1763612780783,1.85789999,143.16,143.15,0.14216157]
[1763612781587,1.85789999,143.14,143.1,50.2]
[1763612781770,1.85789999,143.13,143.12,50.0]
[1763612782654,1.85789999,143.13,143.12,50.67]
[1763612782861,1.85789999,143.13,143.12,53.29747331]
[1763612783463,1.85789999,143.13,143.12,53.43963488]
[1763612784071,1.85789999,143.15,143.12,53.43963488]
[1763612784274,1.85789999,143.13,143.12,53.43963488]
[1763612784890,1.85789999,143.13,143.12,57.79930522]
[1763612785090,1.85789999,143.15,143.14,50.14216157]
[1763612785262,1.85789999,143.15,143.14,52.76963488]
[1763612785461,1.85789999,143.15,143.14,53.43963488]
[1763612786072,1.85789999,143.15,143.14,60.42580226]
[1763612786685,1.85789999,143.16,143.14,60.42580226]
[1763612786980,1.85789999,143.15,143.14,52.76963488]
[1763612787699,1.85789999,143.15,143.14,59.75580226]
[1763612788176,1.85789999,143.15,143.14,50.14216157]
[1763612788361,1.85789999,143.15,143.14,0.14216157]
[1763612789569,1.85789999,143.11,143.1,0.2]
[1763612789866,3.51789999,143.11,143.1,0.2]
[1763612790889,1.85789999,143.11,143.1,10.65775507]
[1763612791066,1.85789999,143.12,143.11,50.14216157]
[1763612791268,1.85789999,143.12,143.11,53.46963488]
[1763612791667,1.85789999,143.15,143.14,68.12096]
[1763612791860,1.85789999,143.15,143.14,71.59059488]
[1763612792174,1.85789999,143.15,143.14,70.89059488]
[1763612792694,1.85789999,143.15,143.14,78.57676226]
[1763612793077,1.85789999,143.15,143.14,75.94928895]
[1763612793386,1.85789999,143.15,143.14,78.57676226]
[1763612795366,1.66,143.17,143.16,50.0]
[1763612795367,1.85789999,143.17,143.16,50.0]
[1763612795582,1.85789999,143.19,143.18,18.26312157]
[1763612795974,1.66,143.2,143.19,0.14216157]
[1763612795975,1.85789999,143.2,143.19,0.14216157]
[1763612796179,7.68257424,143.24,143.19,3.46963488]
[1763612796180,1.85789999,143.21,143.19,3.46963488]
[1763612796407,1.85789999,143.2,143.19,3.46963488]
[1763612796570,1.85789999,143.21,143.19,3.46963488]
[1763612796970,1.85789999,143.2,143.19,3.46963488]
[1763612797170,1.85789999,143.21,143.19,10.45336279]
[1763612797400,1.85789999,143.2,143.19,10.45336279]
[1763612797891,1.85789999,143.2,143.19,7.12588948]
[1763612798993,3.51789999,143.22,143.19,6.98372791]
[1763612799207,1.85789999,143.2,143.19,6.98372791]
[1763612799703,1.85789999,143.2,143.18,75.10500329]
[1763612799874,1.85789999,143.19,143.18,75.10500329]
[1763612800676,1.85789999,143.21,143.18,75.80500329]
[1763612800890,3.51789999,143.23,143.2,52.62747331]
[1763612801197,1.85789999,143.21,143.2,52.62747331]
[1763612801901,1.85789999,143.21,143.2,53.46963488]
[1763612802599,1.85789999,143.22,143.2,53.46963488]
[1763612802907,34.88999014,143.31,143.18,52.35437016]
[1763612802908,1.85789999,143.24,143.22,50.14216157]
[1763612803100,3.51789999,143.25,143.23,2.76963488]
[1763612803303,1.85789999,143.24,143.23,3.46963488]
[1763612804300,1.85789999,143.26,143.23,3.46963488]
[1763612804490,1.85789999,143.24,143.23,68.26312157]
[1763612804690,1.85789999,143.24,143.23,70.89059488]
[1763612805002,1.85789999,143.24,143.23,78.57237244]
[1763612805688,1.85789999,143.25,143.23,78.57237244]
[1763612806016,1.85789999,143.24,143.23,77.87237244]
[1763612806504,1.85789999,143.24,143.23,68.12096]
[1763612807302,3.51789999,143.24,143.23,68.12096]
[1763612807506,3.51789999,143.24,143.23,68.26312157]
[1763612808199,3.51789999,143.24,143.23,75.94489913]
[1763612808903,3.51789999,143.24,143.23,78.57237244]
[1763612809199,1.66,143.24,143.23,75.94489913]
[1763612809398,3.51789999,143.24,143.23,78.57237244]
[1763612809604,1.66,143.24,143.23,78.57237244]
[1763612809791,3.51789999,143.24,143.23,78.57237244]
[1763612810910,3.51789999,143.24,143.23,75.94489913]
[1763612811105,1.66,143.24,143.23,75.94489913]
[1763612811291,3.51789999,143.24,143.23,75.94489913]
[1763612811604,3.51789999,143.24,143.23,78.57237244]
[1763612812800,1.85789999,143.27,143.26,68.12096]
[1763612813006,1.85789999,143.27,143.26,68.26312157]
[1763612813195,1.85789999,143.27,143.26,68.97312157]
[1763612814705,1.85789999,143.27,143.26,75.95343708]
[1763612817411,1.85789999,143.27,143.26,68.97312157]
[1763612817733,1.85789999,143.27,143.26,75.95343708]
[1763612818082,1.85789999,143.27,143.26,75.24343708]
[1763612818999,1.85789999,143.28,143.26,75.95343708]
[1763612819210,1.85789999,143.27,143.26,75.95343708]
[1763612819787,6.2053733,143.27,143.23,50.0]
[1763612819985,1.85789999,143.24,143.23,50.0]
[1763612820604,1.85789999,143.24,143.23,60.46141244]
[1763612822192,1.91789999,143.24,143.23,50.0]
[1763612822405,1.85789999,143.2,143.18,50.71]
[1763612822593,1.85789999,143.19,143.18,50.0]
[1763612822905,1.85789999,143.19,143.18,50.14216157]
[1763612823297,1.85789999,143.19,143.18,57.12637724]
[1763612823497,1.85789999,143.19,143.18,56.98421567]
[1763612823697,1.85789999,143.19,143.18,57.12637724]
[1763612823923,1.85789999,143.19,143.18,56.98421567]
[1763612824104,1.85789999,143.19,143.18,59.61168898]
[1763612824305,1.85789999,143.19,143.18,60.46385055]
[1763612824498,1.85789999,143.19,143.18,57.83637724]
[1763612826615,1.85789999,143.17,143.16,50.0]
[1763612827420,1.85789999,143.17,143.16,57.69519139]
[1763612827616,1.85789999,143.17,143.16,57.83735296]
[1763612829705,1.85789999,143.18,143.16,60.46482627]
[1763612830002,1.85789999,143.17,143.16,59.75482627]
[1763612830418,1.85789999,143.17,143.16,57.83735296]
[1763612830816,1.85789999,143.17,143.13,27.90978769]
[1763612830817,1.85789999,143.14,143.13,50.71]
[1763612831220,1.85789999,143.14,143.13,50.85216157]
[1763612831524,1.85789999,143.14,143.13,50.71]
[1763612831898,1.85789999,143.14,143.13,50.85216157]
[1763612832195,1.85789999,143.14,143.13,50.71]
[1763612832802,1.85789999,143.14,143.13,50.0]
[1763612833324,1.85789999,143.14,143.13,50.14216157]
[1763612838529,3.51789999,143.14,143.13,50.14216157]
[1763612838931,3.51789999,143.14,143.13,0.14216157]
[1763612840513,1.85789999,143.12,143.11,50.71]
[1763612840836,8.84553188,143.11,143.1,0.2]
[1763612841137,13.19300519,143.11,143.1,0.2]
[1763612841512,13.19300519,143.11,143.1,0.14]
[1763612843015,24.46507736,143.11,143.1,0.14]
[1763612845437,14.67624967,143.11,143.1,0.14]
[1763612846644,15.31746276,143.11,143.1,0.14]
[1763612847228,1.85789999,143.11,143.1,1.00216157]
[1763612847414,3.51789999,143.11,143.1,1.00216157]
[1763612847615,3.51789999,143.11,143.1,0.28216157]
[1763612848041,3.51789999,143.11,143.1,1.00216157]
[1763612848251,3.51789999,143.11,143.1,57.99028176]
[1763612850028,1.85789999,143.12,143.1,62.10099955]
[1763612850234,1.85789999,143.11,143.1,67.05910945]
[1763612850434,1.85789999,143.11,143.1,71.16982724]
[1763612850820,1.85789999,143.11,143.1,71.88982724]
[1763612851321,3.51789999,143.13,143.12,50.14216157]
[1763612851639,3.51789999,143.13,143.12,7.12930522]
[1763612851840,3.51789999,143.13,143.12,7.84930522]
[1763612852431,3.51789999,143.13,143.12,0.14216157]
[1763612852626,1.85789999,143.12,143.11,6.98763099]
[1763612852830,1.85789999,143.11,143.1,57.1279841]
[1763612853231,1.85789999,143.11,143.1,57.8479841]
[1763612853424,1.85789999,143.11,143.1,57.99014567]
[1763612855340,1.85789999,143.11,143.1,62.10086346]
[1763612857426,1.85789999,143.14,143.13,50.0]
[1763612857750,1.85789999,143.14,143.13,0.14216157]
[1763612857946,1.85789999,143.12,143.11,50.86216157]
[1763612859131,1.85789999,143.13,143.12,0.14216157]
[1763612859333,3.51789999,143.14,143.13,50.14216157]
[1763612859532,1.85789999,143.14,143.13,61.23953484]
[1763612859736,1.85789999,143.14,143.13,61.95953484]
[1763612860352,3.51789999,143.15,143.14,0.14216157]
[1763612860654,1.85789999,143.15,143.14,4.97287936]
[1763612860837,1.85789999,143.15,143.14,0.86216157]
[1763612861037,1.85789999,143.15,143.14,4.97287936]
[1763612861640,1.85789999,143.15,143.14,11.95904674]
[1763612862333,1.85789999,143.12,143.11,57.70759058]
[1763612862641,1.85789999,143.12,143.11,61.24046994]
[1763612863025,1.85789999,143.12,143.11,61.81830837]
[1763612863452,1.85789999,143.12,143.11,61.96046994]
[1763612864538,1.85789999,143.15,143.13,50.0]
[1763612864741,1.85789999,143.14,143.13,54.25287936]
[1763612865044,1.85789999,143.15,143.14,0.14216157]
[1763612865238,3.51789999,143.17,143.15,50.14216157]
[1763612865435,1.13789999,143.2,143.17,50.0]
[1763612865653,1.13789999,143.2,143.19,0.14216157]
[1763612866249,1.13789999,143.2,143.19,0.86216157]
[1763612866457,2.79789999,143.21,143.19,11.95660727]
[1763612866633,1.13789999,143.2,143.19,11.23660727]
[1763612867144,1.13789999,143.2,143.19,7.84588948]
[1763612868160,1.13789999,143.21,143.19,61.95660727]
[1763612868331,1.13789999,143.25,143.21,50.14216157]
[1763612868536,7.07946335,143.28,143.21,50.14216157]
[1763612868537,1.13789999,143.24,143.23,4.11071779]
[1763612868733,1.13789999,143.25,143.24,0.14216157]
[1763612869047,1.13789999,143.25,143.24,0.86216157]
[1763612869249,1.13789999,143.25,143.24,0.14216157]
[1763612869551,1.13789999,143.25,143.24,4.97287936]
[1763612870653,1.13789999,143.25,143.24,0.86216157]
[1763612871434,1.13789999,143.22,143.21,50.0]
[1763612871659,1.13789999,143.22,143.21,57.84491417]
[1763612872347,1.13789999,143.2,143.19,50.0]
[1763612872656,1.13789999,143.2,143.19,68.57745971]
[1763612873558,1.13789999,143.2,143.19,50.14216157]
[1763612873935,1.13789999,143.2,143.19,57.70372791]
[1763612874138,1.13789999,143.2,143.19,68.57748288]
[1763612874341,1.13789999,143.2,143.19,61.59375497]
[1763612874541,1.13789999,143.2,143.19,68.71964445]
[1763612874946,1.13789999,143.22,143.2,0.14216157]
[1763612875172,1.13789999,143.22,143.21,10.87375497]
[1763612875583,1.13789999,143.22,143.21,11.59375497]
[1763612876180,1.13789999,143.22,143.21,18.57650757]
[1763612878860,1.13789999,143.22,143.21,68.71866914]
[1763612879065,1.13789999,143.24,143.22,0.14216157]
[1763612879273,1.13789999,143.24,143.23,11.59375497]
[1763612879658,1.13789999,143.23,143.22,11.73591654]
[1763612880762,1.13789999,143.23,143.22,18.71818158]
[1763612881554,1.13789999,143.26,143.23,50.0]
[1763612881761,1.13789999,143.26,143.25,79.13687654]
[1763612882143,1.13789999,143.26,143.25,79.85687654]
[1763612882350,1.13789999,143.26,143.25,68.98312157]
[1763612882665,1.13789999,143.26,143.25,18.26312157]
[1763612882864,1.13789999,143.26,143.25,25.96392436]
[1763612884669,1.13789999,143.26,143.25,18.26312157]
[1763612886073,1.13789999,143.27,143.26,0.14216157]
[1763612889167,1.13789999,143.27,143.26,7.12247708]
[1763612889374,1.13789999,143.27,143.25,18.12096]
[1763612889682,1.13789999,143.25,143.24,18.71689278]
[1763612890050,1.13789999,143.25,143.24,0.14216157]
[1763612890357,2.79789999,143.25,143.24,0.14216157]
[1763612893286,2.79789999,143.25,143.24,0.86216157]
[1763612894070,2.79789999,143.25,143.24,0.14216157]
[1763612894474,1.13789999,143.25,143.24,0.86216157]
[1763612895287,1.13789999,143.25,143.24,0.14216157]
[1763612899687,8.11870278,143.25,143.24,0.14216157]
[1763612899861,1.13789999,143.21,143.2,50.0]
[1763612900194,1.13789999,143.18,143.17,57.70431344]
[1763612900363,1.13789999,143.18,143.17,56.98431344]
[1763612900683,1.13789999,143.18,143.17,57.12647501]
[1763612900891,1.13789999,143.18,143.17,50.0]
[1763612901070,2.79789999,143.18,143.17,50.0]
[1763612901393,1.13789999,143.16,143.15,56.98554551]
[1763612901586,1.13789999,143.16,143.15,50.0]
[1763612902164,1.13789999,143.16,143.15,50.14216157]
[1763612902382,1.13789999,143.16,143.15,50.0]
[1763612902563,1.13789999,143.16,143.15,57.80784092]
[1763612904786,1.13789999,143.16,143.15,60.43433474]
[1763612904989,1.13789999,143.18,143.17,68.26312157]
[1763612905286,1.13789999,143.18,143.17,70.88961539]
[1763612905590,1.13789999,143.18,143.17,71.56961539]
[1763612907099,1.13789999,143.18,143.17,78.55431888]
[1763612910305,1.13789999,143.18,143.17,0.14216157]
[1763612910494,1.13789999,143.16,143.15,0.14216157]
[1763612910702,1.13789999,143.14,143.12,57.67696145]
[1763612910876,1.13789999,143.13,143.12,57.67696145]
[1763612911489,1.13789999,143.13,143.12,50.83216157]
[1763612911688,1.13789999,143.13,143.12,53.45865539]
[1763612911897,1.13789999,143.13,143.12,60.44579904]
[1763612912400,1.13789999,143.13,143.12,60.30363747]
[1763612912580,1.13789999,143.13,143.12,60.44579904]
[1763612913170,1.13789999,143.13,143.12,57.81930522]
[1763612913378,1.13789999,143.13,143.11,25.10843021]
[1763612913592,1.13789999,143.12,143.11,25.79843021]
[1763612913771,1.13789999,143.12,143.11,25.25059178]
[1763612913976,1.13789999,143.11,143.1,60.4445312]
[1763612914177,1.13789999,143.11,143.1,50.14]
[1763612914396,1.13789999,143.11,143.1,53.45649382]
[1763612914599,1.13789999,143.11,143.1,50.97216157]
[1763612914787,1.13789999,143.11,143.1,57.96028176]
[1763612914982,1.13789999,143.11,143.1,57.81812019]
[1763612915203,1.13789999,143.11,143.1,50.83]
[1763612915380,1.13789999,143.11,143.1,50.97216157]
[1763612915885,1.13789999,143.11,143.1,57.96028176]
[1763612917899,1.13789999,143.15,143.13,0.14216157]
[1763612918096,1.13789999,143.14,143.13,0.14216157]
[1763612918278,1.13789999,143.14,143.13,0.83216157]
[1763612918783,1.13789999,143.14,143.13,3.45865539]
[1763612919396,1.13789999,143.14,143.13,10.44531087]
[1763612921304,1.13789999,143.14,143.13,7.81881705]
[1763612921493,1.13789999,143.14,143.13,10.44531087]
[1763612922582,1.13789999,143.14,143.13,7.81881705]
[1763612925281,1.13789999,143.12,143.1,50.14]
[1763612925481,1.13789999,143.11,143.1,50.14]
[1763612926407,1.80789999,143.11,143.1,50.14]
[1763612926587,1.80789999,143.11,143.1,50.28216157]
[1763612926792,1.13789999,143.11,143.1,50.28216157]
[1763612927192,8.12553188,143.11,143.1,0.14]
[1763612927408,8.79553188,143.11,143.1,0.14]
[1763612927910,8.12553188,143.11,143.1,0.14]
[1763612929308,1.13789999,143.11,143.1,0.14]
[1763612931614,1.13789999,143.11,143.1,0.94216157]
[1763612931615,2.79789999,143.11,143.1,0.94216157]
[1763612931820,2.79789999,143.11,143.1,7.93028176]
[1763612931989,2.79789999,143.11,143.1,10.55677558]
[1763612932816,1.13789999,143.11,143.1,10.55677558]
[1763612933189,1.13789999,143.12,143.1,10.55677558]
[1763612933418,1.13789999,143.12,143.11,7.64763189]
[1763612933787,1.13789999,143.13,143.12,0.14216157]
[1763612934011,1.13789999,143.13,143.12,3.42865539]
[1763612935994,1.13789999,143.13,143.12,10.41579904]
[1763612936720,1.79789999,143.13,143.12,0.14216157]
[1763612937013,1.13789999,143.11,143.1,0.14]
[1763612937536,1.13789999,143.11,143.1,0.28216157]
[1763612937989,1.13789999,143.11,143.1,7.27028176]
[1763612940214,1.13789999,143.12,143.11,50.14216157]
[1763612940399,1.13789999,143.12,143.11,50.80216157]
[1763612940596,1.13789999,143.12,143.11,53.42865539]
[1763612941401,1.13789999,143.12,143.11,60.41628728]
[1763612942848,1.13789999,143.12,143.11,57.78979346]
[1763612943034,1.13789999,143.12,143.11,60.41628728]
[1763612944140,1.13789999,143.12,143.11,57.78979346]
[1763612944322,1.13789999,143.12,143.11,60.41628728]
[1763612944937,1.66,143.16,143.12,2.76865539]
[1763612945151,1.66,143.16,143.12,3.42865539]
[1763612945152,2.32,143.16,143.12,3.42865539]
[1763612945361,0.66,143.16,143.12,3.42865539]
[1763612945519,2.32,143.16,143.12,3.42865539]
[1763612945849,0.66,143.16,143.12,3.42865539]
[1763612946011,2.32,143.16,143.12,10.41556865]
[1763612947329,2.32,143.16,143.12,7.12907483]
[1763612947612,4.28649382,143.16,143.12,7.12907483]
[1763612947909,0.66,143.15,143.12,7.12907483]
[1763612948137,11.93171526,143.16,143.12,7.12907483]
[1763612948541,11.93171526,143.16,143.12,7.78907483]
[1763612950559,11.93171526,143.16,143.12,7.12907483]
[1763612950858,0.66,143.15,143.12,7.12907483]
[1763612951329,7.64572686,143.15,143.12,7.12907483]
[1763612951527,7.64572686,143.15,143.12,0.14216157]
[1763612953234,10.27222068,143.15,143.12,0.14216157]
[1763612957074,9.61222068,143.15,143.12,0.14216157]
[1763612957671,10.27222068,143.15,143.12,0.14216157]
[1763612958870,0.66,143.14,143.12,0.14216157]
[1763612959045,1.66,143.13,143.12,0.14216157]
[1763612959749,4.94649382,143.13,143.1,0.14]
[1763612960048,4.94649382,143.13,143.1,0.28216157]
[1763612960548,11.93360367,143.13,143.1,0.28216157]
[1763612960851,11.93360367,143.13,143.1,1.00216157]
[1763612961238,9.30710985,143.13,143.1,1.00216157]
[1763612961444,11.93360367,143.13,143.1,1.00216157]
[1763612963977,9.30710985,143.13,143.1,1.00216157]
[1763612964175,11.93360367,143.13,143.1,1.00216157]
[1763612964758,11.27360367,143.13,143.1,0.14]
[1763612964954,3.32649382,143.12,143.1,0.14]
[1763612965986,10.31393981,143.12,143.1,0.14]
[1763612966679,0.7,143.11,143.1,0.14]
[1763612966850,4.80847093,143.11,143.1,0.14]
[1763612969174,11.79610282,143.11,143.1,0.14]
[1763612972676,6.98710291,143.13,143.1,0.83]
[1763612972864,1.66,143.12,143.11,0.14216157]
[1763612973389,1.66,143.12,143.11,0.83216157]
[1763612974676,1.66,143.12,143.1,0.14]
[1763612974878,8.64714444,143.12,143.1,0.28216157]
[1763612975460,1.66,143.12,143.1,7.96017503]
[1763612975777,6.46847093,143.12,143.1,0.28216157]
[1763612976582,5.76847093,143.12,143.1,0.28216157]
[1763612976778,1.66,143.12,143.1,7.27014582]
[1763612977777,11.79522617,143.13,143.1,0.28216157]
[1763612977969,1.66,143.11,143.1,0.28216157]
[1763612978767,4.10847093,143.12,143.1,0.28216157]
[1763612978965,1.66,143.11,143.1,0.28216157]
[1763612984186,1.66,143.11,143.1,0.97216157]
[1763612984563,1.66,143.11,143.1,0.28216157]
[1763612985768,1.66,143.11,143.1,0.97216157]
[1763612986172,1.66,143.11,143.1,0.28216157]
[1763612986372,1.66,143.11,143.1,0.97216157]
[1763612986808,1.66,143.11,143.1,7.96028176]
[1763612986966,11.09493358,143.14,143.1,0.97216157]
[1763612987315,11.09493358,143.14,143.1,0.14]
[1763612987316,4.10847093,143.12,143.1,0.14]
[1763612987607,4.10847093,143.11,143.1,0.14]
[1763612987906,11.09610282,143.11,143.1,0.14]
[1763612988082,11.79610282,143.11,143.1,0.14]
[1763612990688,14.59438187,143.11,143.1,0.14]
[1763612991275,24.38320956,143.11,143.1,0.14]
[1763612992097,11.79610282,143.11,143.1,0.14]
[1763612992494,13.45610282,143.11,143.1,0.14]
[1763612997476,9.78882769,143.1,143.06,0.2]
[1763612997699,4.10847093,143.07,143.06,0.2]
[1763612997892,5.76847093,143.07,143.06,0.2]
[1763612998294,6.45847093,143.07,143.06,0.2]
[1763612999380,13.44805644,143.07,143.06,0.2]
[1763613000212,11.78805644,143.07,143.06,0.2]
[1763613000505,12.75805644,143.07,143.06,0.91]
[1763613000705,11.09805644,143.07,143.06,0.2]
[1763613000885,1.66,143.07,143.06,0.91]
[1763613001286,8.64958551,143.07,143.06,0.91]
[1763613002189,8.64958551,143.07,143.06,0.2]
[1763613002491,1.66,143.07,143.06,0.91]
[1763613002699,11.0976151,143.08,143.06,1.05216157]
[1763613002905,1.66,143.07,143.06,0.34216157]
[1763613003406,1.66,143.07,143.06,1.05216157]
[1763613004708,1.66,143.07,143.06,0.91]
[1763613004889,1.66,143.07,143.06,1.05216157]
[1763613006113,1.66,143.07,143.06,0.91]
[1763613006294,8.64958551,143.07,143.06,0.91]
[1763613007809,1.66,143.07,143.06,0.91]